[Event "GER-chT Youth Countries 2020"]
[Site "Berlin"]
[Date "2020.09.30"]
[Round "2"]
[White "Zackrisson, Peter"]
[Black "Muedder, Melanie"]
[Result "1-0"]
[ECO "B32"]
[WhiteElo "1947"]
[BlackElo "2039"]
[Annotator "ChessBase"]
[PlyCount "97"]
[EventDate "2020.09.30"]
[EventType "team-tourn"]
[EventRounds "7"]
[EventCountry "GER"]
[SourceTitle "playchess.com"]
[Source "ChessBase"]
[SourceQuality "1"]
[WhiteTeam "Brandenburg"]
[BlackTeam "Nordrhein-Westfalen"]
[WhiteTeamCountry "GER"]
[BlackTeamCountry "GER"]
[TimeControl "30/5400+30:0"]

1. e4 {[%emt 0:00:00]} c5 {[%emt 0:00:00]} 2. Nf3 {[%emt 0:00:00]} Nc6 {[%emt 0:00:00]} 3. d4 {[%emt 0:00:00]} cxd4 {[%emt 0:00:00]} 4. Nxd4 {[%emt 0:00:00]} e5 {[%emt 0:00:00]} 5. Nb5 {[%emt 0:00:02]} d6 {[%emt 0:00:01]} 6. c4 {[%emt 0:00:07]} Be7 {[%emt 0:00:16]} 7. N1c3 {[%emt 0:00:08]} a6 {[%emt 0:00:08]} 8. Na3 {[%emt 0:00:06]} f5 {[%emt 0:00:07]} 9. exf5 {[%emt 0:00:09]} Bxf5 {[%emt 0:00:09]} 10. Nc2 {[%emt 0:00:31]} Nf6 {[%emt 0:01:22]} 11. Bd3 {[%emt 0:00:19]} Be6 {[%emt 0:00:11]} 12. O-O {[%emt 0:06:18]} O-O {[%emt 0:00:59]} 13. Ne3 {[%emt 0:04:51]} Rc8 {[%emt 0:07:08]} 14. Ne4 {[%emt 0:13:06]} Nd4 {[%emt 0:06:07]} 15. b3 {[%emt 0:01:44]} b5 {[%emt 0:06:42]} 16. Nxf6+ {[%emt 0:05:22]} Rxf6 {[%emt 0:11:09]} 17. Bb2 {[%emt 0:03:19]} bxc4 {[%emt 0:02:51]} 18. Bxc4 {[%emt 0:01:02]} Bxc4 {[%emt 0:06:21]} 19. Nxc4 {[%emt 0:00:26]} Nf5 {[%emt 0:02:07]} 20. Qe2 {[%emt 0:02:12]} Rg6 {[%emt 0:08:25]} 21. Rad1 {[%emt 0:07:14]} Qc7 {[%emt 0:07:20]} 22. Rd3 {[%emt 0:01:54]} Qb7 {[%emt 0:05:45]} 23. f3 {[%emt 0:08:57]} Nh4 {[%emt 0:06:01]} 24. g3 {[%emt 0:01:05]} Rf8 {[%emt 0:02:23]} 25. Nd2 {[%emt 0:07:09]} Qc8 {[%emt 0:06:39]} 26. Kh1 {[%emt 0:05:15]} Nf5 {[%emt 0:03:02]} 27. Ne4 {[%emt 0:03:40]} Qe6 {[%emt 0:02:50]} 28. Rfd1 {[%emt 0:01:14]} Qf7 {[%emt 0:04:34]} 29. Qf2 {[%emt 0:14:26]} d5 {[%emt 0:04:59]} 30. Rxd5 {[%emt 0:01:42]} Nd4 {[%emt 0:00:55]} 31. Rd7 {[%emt 1:34:32]} Qe6 {[%emt 1:32:45]} 32. Rc7 {[%emt 0:01:09]} Rxf3 {[%emt 0:02:28]} 33. Qg2 {[%emt 0:01:06]} Rf8 {[%emt 0:01:09]} 34. Bxd4 {[%emt 0:02:30]} exd4 {[%emt 0:00:09]} 35. Rc4 {[%emt 0:02:28]} Rg4 {[%emt 0:01:34]} 36. Nf2 {[%emt 0:02:02]} Qe2 {[%emt 0:00:40]} 37. Rf1 {[%emt 0:01:35]} Rg5 {[%emt 0:00:36]} 38. Rxd4 {[%emt 0:00:47]} Bc5 {[%emt 0:00:23]} 39. Re4 {[%emt 0:00:17]} Qxa2 {[%emt 0:00:38]} 40. Nd3 {[%emt 0:00:20]} Rxf1+ {[%emt 0:00:28]} 41. Qxf1 {[%emt 0:00:07]} h6 {[%emt 0:00:00]} 42. Nxc5 {[%emt 0:00:00]} Kh7 {[%emt 0:00:00]} 43. Qd3 {[%emt 0:00:00]} Rf5 {[%emt 0:00:00]} 44. Rf4 {[%emt 0:00:00]} Qa1+ {[%emt 0:00:00]} 45. Kg2 {[%emt 0:00:00]} Qb2+ {[%emt 0:00:00]} 46. Kh3 {[%emt 0:00:00]} g6 {[%emt 0:00:00]} 47. Rxf5 {[%emt 0:00:00]} gxf5 {[%emt 0:00:00]} 48. Qxf5+ {[%emt 0:00:00]} Kg8 {[%emt 0:00:00]} 49. Ne6 {[%emt 0:00:00]} 1-0

[Event "GER-chT Youth Countries 2020"]
[Site "Berlin"]
[Date "2020.09.30"]
[Round "2"]
[White "Halabi, Ibrahim"]
[Black "Simon, Tessa"]
[Result "1-0"]
[ECO "B33"]
[WhiteElo "1895"]
[BlackElo "1860"]
[Annotator "NA"]
[PlyCount "89"]
[EventDate "2020.09.30"]
[EventType "team-tourn"]
[EventRounds "7"]
[EventCountry "GER"]
[SourceTitle "playchess.com"]
[Source "ChessBase"]
[SourceQuality "1"]
[WhiteTeam "Rheinland-Pfalz"]
[BlackTeam "Sachsen"]
[WhiteTeamCountry "GER"]
[BlackTeamCountry "GER"]
[TimeControl "30/5400+30:0"]

1. e4 {[%emt 0:00:00]} c5 {[%emt 0:00:00]} 2. Nf3 {[%emt 0:00:00]} Nc6 {[%emt 0:00:00]} 3. d4 {[%emt 0:00:00]} cxd4 {[%emt 0:00:00]} 4. Nxd4 {[%emt 0:00:00]} Nf6 {[%emt 0:00:00]} 5. Nc3 {[%emt 0:00:00]} e5 {[%emt 0:00:05]} 6. Ndb5 {[%emt 0:00:00]} d6 {[%emt 0:00:16]} 7. Bg5 {[%emt 0:00:06]} a6 {[%emt 0:00:07]} 8. Na3 {[%emt 0:00:04]} b5 {[%emt 0:00:05]} 9. Nd5 {[%emt 0:00:04]} Be7 {[%emt 0:00:08]} 10. Bxf6 {[%emt 0:00:06]} Bxf6 {[%emt 0:00:07]} 11. c3 {[%emt 0:00:17]} Ne7 {[%emt 0:00:31]} 12. Nc2 {[%emt 0:09:37]} Nxd5 {[%emt 0:01:01]} 13. Qxd5 {[%emt 0:01:03]} Rb8 {[%emt 0:02:10]} 14. Nb4 {[%emt 0:08:51]} Bb7 {[%emt 0:03:51]} 15. Qd3 {[%emt 0:00:26]} O-O {[%emt 0:02:34]} 16. Be2 {[%emt 0:03:04]} a5 {[%emt 0:09:33]} 17. Nd5 {[%emt 0:03:24]} Bxd5 {[%emt 0:00:30]} 18. Qxd5 {[%emt 0:00:14]} b4 {[%emt 0:00:22]} 19. cxb4 {[%emt 0:05:39]} Rxb4 {[%emt 0:00:47]} 20. Bc4 {[%emt 0:01:53]} Rxb2 {[%emt 0:06:28]} 21. Bb3 {[%emt 0:00:53]} Qb6 {[%emt 0:03:33]} 22. O-O {[%emt 0:00:48]} Bg5 {[%emt 0:07:06]} 23. Rad1 {[%emt 0:02:00]} Be7 {[%emt 0:08:56]} 24. Rd3 {[%emt 0:03:13]} Qc5 {[%emt 0:08:56]} 25. Qb7 {[%emt 0:02:06]} Rxb3 {[%emt 0:09:19]} 26. axb3 {[%emt 0:00:55]} Bf6 {[%emt 0:04:21]} 27. Rd5 {[%emt 0:01:03]} Qa3 {[%emt 0:08:23]} 28. Qb5 {[%emt 0:01:29]} Bd8 {[%emt 0:04:48]} 29. Qa4 {[%emt 0:00:38]} Qb2 {[%emt 0:02:15]} 30. Rxd6 {[%emt 0:00:33]} h6 {[%emt 0:01:34]} 31. Qc4 {[%emt 1:31:45]} Bg5 {[%emt 1:34:37]} 32. Rc6 {[%emt 0:03:26]} Rd8 {[%emt 0:02:43]} 33. Rc8 {[%emt 0:04:10]} Rxc8 {[%emt 0:02:03]} 34. Qxc8+ {[%emt 0:00:21]} Kh7 {[%emt 0:00:10]} 35. Qc4 {[%emt 0:00:08]} Kg8 {[%emt 0:01:49]} 36. g3 {[%emt 0:00:29]} Qd2 {[%emt 0:02:15]} 37. Qd5 {[%emt 0:03:21]} Qc3 {[%emt 0:01:38]} 38. Rd1 {[%emt 0:01:03]} Bf6 {[%emt 0:01:12]} 39. Qc4 {[%emt 0:01:33]} Qb2 {[%emt 0:00:44]} 40. Rd7 {[%emt 0:01:06]} Qb1+ {[%emt 0:02:16]} 41. Kg2 {[%emt 0:00:20]} Kh7 {[%emt 0:02:35]} 42. Rxf7 {[%emt 0:00:58]} Kg6 {[%emt 0:00:00]} 43. Ra7 {[%emt 0:00:00]} Kh7 {[%emt 0:00:00]} 44. Rxa5 {[%emt 0:00:00]} Qe1 {[%emt 0:00:00]} 45. Ra4 {[%emt 0:00:00]} 1-0

[Event "GER-chT Youth Countries 2020"]
[Site "Berlin"]
[Date "2020.09.30"]
[Round "2"]
[White "Brunner, Sophia"]
[Black "Werner, Florin"]
[Result "1-0"]
[ECO "D02"]
[WhiteElo "1850"]
[BlackElo "1481"]
[Annotator "NA"]
[PlyCount "42"]
[EventDate "2020.09.30"]
[EventType "team-tourn"]
[EventRounds "7"]
[EventCountry "GER"]
[SourceTitle "playchess.com"]
[Source "ChessBase"]
[SourceQuality "1"]
[WhiteTeam "Niedersachsen"]
[BlackTeam "Hessen"]
[WhiteTeamCountry "GER"]
[BlackTeamCountry "GER"]
[TimeControl "30/5400+30:0"]

1. d4 {[%emt 0:00:00]} d5 {[%emt 0:00:00]} 2. Nf3 {[%emt 0:00:00]} Bf5 {[%emt 0:00:11]} 3. g3 {[%emt 0:00:24]} Nf6 {[%emt 0:00:07]} 4. Bg2 {[%emt 0:00:09]} e6 {[%emt 0:00:04]} 5. O-O {[%emt 0:00:47]} c5 {[%emt 0:00:27]} 6. b3 {[%emt 0:01:34]} Nc6 {[%emt 0:00:07]} 7. Bb2 {[%emt 0:02:46]} Nb4 {[%emt 0:03:12]} 8. Na3 {[%emt 0:01:56]} Rc8 {[%emt 0:00:50]} 9. c3 Nc6 10. c4 {[%emt 0:28:10]} Qb6 {[%emt 0:08:31]} 11. cxd5 {[%emt 0:07:41]} exd5 {[%emt 0:00:20]} 12. dxc5 {[%emt 0:08:25]} Bxc5 {[%emt 0:02:40]} 13. Nc2 {[%emt 0:00:27]} Bg6 14. Bxf6 {[%emt 0:11:25]} gxf6 {[%emt 0:01:51]} 15. e3 {[%emt 0:00:17]} Ne7 {[%emt 0:03:10]} 16. Nfd4 {[%emt 0:10:22]} Bxc2 {[%emt 0:03:15]} 17. Nxc2 {[%emt 0:00:10]} Qd6 {[%emt 0:00:15]} 18. Nd4 {[%emt 0:01:18]} a6 {[%emt 0:00:49]} 19. Qd3 {[%emt 0:03:59]} h6 {[%emt 0:23:15]} 20. Rfd1 {[%emt 0:06:48]} Rd8 {[%emt 0:00:30]} 21. Rac1 {[%emt 0:01:26]} Bb6 {[%emt 0:00:29]} 1-0

[Event "GER-chT Youth Countries 2020"]
[Site "Berlin"]
[Date "2020.09.30"]
[Round "2"]
[White "Grossmann, Piet"]
[Black "Maetzkow, Maximilian Paul"]
[Result "1/2-1/2"]
[ECO "C12"]
[WhiteElo "1849"]
[BlackElo "2242"]
[Annotator "ChessBase"]
[PlyCount "42"]
[EventDate "2020.09.30"]
[EventType "team-tourn"]
[EventRounds "7"]
[EventCountry "GER"]
[SourceTitle "playchess.com"]
[Source "ChessBase"]
[SourceQuality "1"]
[WhiteTeam "Mecklenburg-Vorpommern"]
[BlackTeam "Berlin"]
[WhiteTeamCountry "GER"]
[BlackTeamCountry "GER"]
[TimeControl "30/5400+30:0"]

1. e4 e6 {[%emt 0:00:00]} 2. d4 {[%emt 0:00:00]} d5 {[%emt 0:00:00]} 3. Nc3 {[%emt 0:00:35]} Nf6 {[%emt 0:00:00]} 4. Bg5 {[%emt 0:01:55]} Bb4 {[%emt 0:00:30]} 5. e5 {[%emt 0:00:18]} h6 {[%emt 0:00:05]} 6. Bd2 {[%emt 0:00:05]} Bxc3 {[%emt 0:00:07]} 7. bxc3 {[%emt 0:00:03]} Ne4 {[%emt 0:00:06]} 8. Qg4 {[%emt 0:00:16]} Kf8 {[%emt 0:00:06]} 9. Bd3 {[%emt 0:10:02]} Nxd2 {[%emt 0:01:01]} 10. Kxd2 {[%emt 0:00:03]} c5 {[%emt 0:00:05]} 11. Nf3 {[%emt 0:02:05]} c4 {[%emt 0:00:50]} 12. Be2 {[%emt 0:00:57]} Nc6 {[%emt 0:00:23]} 13. h4 {[%emt 0:01:53]} b5 {[%emt 0:01:05]} 14. Rhb1 {[%emt 0:12:32]} Rb8 {[%emt 0:03:18]} 15. Qf4 {[%emt 0:04:57]} a5 {[%emt 0:01:20]} 16. a3 {[%emt 0:01:06]} Qe7 {[%emt 0:02:20]} 17. Qe3 {[%emt 0:14:49]} Ke8 {[%emt 0:07:26]} 18. h5 {[%emt 0:02:29]} Kd7 {[%emt 0:01:13]} 19. g3 {[%emt 0:01:30]} Ba6 {[%emt 0:10:48]} 20. Ne1 {[%emt 0:08:51]} Rb6 {[%emt 0:12:52]} 21. Ng2 {[%emt 0:09:24]} Rhb8 {[%emt 0:02:36]} 1/2-1/2

[Event "GER-chT Youth Countries 2020"]
[Site "Berlin"]
[Date "2020.09.30"]
[Round "2"]
[White "Viet, Silas"]
[Black "Schubert, Nikita"]
[Result "0-1"]
[ECO "A45"]
[WhiteElo "1846"]
[BlackElo "1946"]
[Annotator "ChessBase"]
[PlyCount "114"]
[EventDate "2020.09.30"]
[EventType "team-tourn"]
[EventRounds "7"]
[EventCountry "GER"]
[SourceTitle "playchess.com"]
[Source "ChessBase"]
[SourceQuality "1"]
[WhiteTeam "Bremen"]
[BlackTeam "Thüringen"]
[WhiteTeamCountry "GER"]
[BlackTeamCountry "GER"]
[TimeControl "30/5400+30:0"]

1. d4 {[%emt 0:00:00]} Nf6 {[%emt 0:00:00]} 2. Bf4 {[%emt 0:00:00]} d5 {[%emt 0:00:05]} 3. e3 {[%emt 0:00:00]} c5 {[%emt 0:01:13]} 4. c3 {[%emt 0:00:15]} Nc6 {[%emt 0:02:45]} 5. Nd2 {[%emt 0:01:13]} Bf5 {[%emt 0:02:58]} 6. Ngf3 {[%emt 0:01:47]} e6 {[%emt 0:04:17]} 7. Bb5 {[%emt 0:02:10]} Qb6 {[%emt 0:05:55]} 8. Qa4 {[%emt 0:03:46]} a6 {[%emt 0:05:52]} 9. Bxc6+ {[%emt 0:00:16]} Qxc6 {[%emt 0:06:22]} 10. Qxc6+ {[%emt 0:01:33]} bxc6 {[%emt 0:00:01]} 11. Nb3 {[%emt 0:01:11]} c4 {[%emt 0:08:10]} 12. Na5 {[%emt 0:06:05]} c5 {[%emt 0:03:07]} 13. dxc5 {[%emt 0:01:14]} Bxc5 {[%emt 0:02:35]} 14. Nb7 {[%emt 0:00:15]} Ne4 {[%emt 0:02:17]} 15. Nd4 {[%emt 0:06:59]} Ra7 {[%emt 0:11:26]} 16. Nxc5 {[%emt 0:02:06]} Nxc5 {[%emt 0:00:05]} 17. Nxf5 {[%emt 0:01:09]} exf5 {[%emt 0:04:37]} 18. Ke2 {[%emt 0:02:51]} Rb7 {[%emt 0:01:55]} 19. Rab1 {[%emt 0:06:56]} f6 {[%emt 0:04:27]} 20. Rhd1 {[%emt 0:02:00]} Rd7 {[%emt 0:09:44]} 21. b3 {[%emt 0:09:25]} cxb3 {[%emt 0:03:54]} 22. axb3 {[%emt 0:00:07]} Ke7 {[%emt 0:00:29]} 23. b4 {[%emt 0:04:44]} Na4 {[%emt 0:06:45]} 24. Rd3 {[%emt 0:06:47]} Rc8 {[%emt 0:00:58]} 25. Kd2 {[%emt 0:00:08]} h5 {[%emt 0:01:33]} 26. h3 {[%emt 0:02:18]} Nb6 {[%emt 0:00:54]} 27. Ra1 {[%emt 0:02:35]} Nc4+ {[%emt 0:00:56]} 28. Kc2 {[%emt 0:00:20]} Ra8 {[%emt 0:02:37]} 29. f3 {[%emt 0:02:36]} a5 {[%emt 0:02:15]} 30. Bg3 {[%emt 0:02:30]} Ke6 {[%emt 0:01:09]} 31. Bf2 {[%emt 1:30:59]} Rdd8 {[%emt 1:31:41]} 32. bxa5 {[%emt 0:01:28]} Rdb8 {[%emt 0:01:01]} 33. Ra2 {[%emt 0:06:14]} Rxa5 {[%emt 0:01:04]} 34. Rxa5 {[%emt 0:01:47]} Nxa5 {[%emt 0:00:01]} 35. e4 {[%emt 0:07:00]} fxe4 {[%emt 0:01:43]} 36. fxe4 {[%emt 0:00:07]} dxe4 {[%emt 0:00:47]} 37. Rd4 {[%emt 0:00:37]} f5 {[%emt 0:00:56]} 38. Bg3 {[%emt 0:04:20]} Rb5 {[%emt 0:00:14]} 39. c4 {[%emt 0:01:53]} Rb4 {[%emt 0:01:07]} 40. Rd6+ {[%emt 0:01:11]} Ke7 {[%emt 0:00:16]} 41. Ra6 {[%emt 0:05:09]} Rxc4+ {[%emt 0:01:39]} 42. Kd1 {[%emt 0:00:08]} Nc6 {[%emt 0:00:00]} 43. Kd2 {[%emt 0:00:00]} g5 {[%emt 0:00:00]} 44. h4 {[%emt 0:00:00]} f4 {[%emt 0:00:00]} 45. Bh2 {[%emt 0:00:00]} Kf6 {[%emt 0:00:00]} 46. hxg5+ {[%emt 0:00:00]} Kxg5 {[%emt 0:00:00]} 47. Ra8 {[%emt 0:00:00]} Rd4+ {[%emt 0:00:00]} 48. Ke2 {[%emt 0:00:00]} Rd8 {[%emt 0:00:00]} 49. Ra4 {[%emt 0:00:00]} Kf5 {[%emt 0:00:00]} 50. Rc4 {[%emt 0:00:00]} Nd4+ {[%emt 0:00:00]} 51. Ke1 {[%emt 0:00:00]} e3 {[%emt 0:01:14]} 52. Rc7 {[%emt 0:00:00]} Ne6 {[%emt 0:00:55]} 53. Rf7+ {[%emt 0:00:00]} Ke4 {[%emt 0:01:21]} 54. Re7 {[%emt 0:00:00]} Rd6 {[%emt 0:00:35]} 55. Ke2 {[%emt 0:00:00]} Ra6 {[%emt 0:00:20]} 56. Re8 {[%emt 0:00:00]} Ra2+ {[%emt 0:00:33]} 57. Kf1 {[%emt 0:00:00]} Kd3 {[%emt 0:00:47]} 0-1

[Event "GER-chT Youth Countries 2020"]
[Site "Berlin"]
[Date "2020.09.30"]
[Round "2"]
[White "Kluehs, Gustaf"]
[Black "Tovmasyan, Minas"]
[Result "1/2-1/2"]
[ECO "A06"]
[WhiteElo "1827"]
[BlackElo "1658"]
[Annotator "NA"]
[PlyCount "38"]
[EventDate "2020.09.30"]
[EventType "team-tourn"]
[EventRounds "7"]
[EventCountry "GER"]
[SourceTitle "playchess.com"]
[Source "ChessBase"]
[SourceQuality "1"]
[WhiteTeam "Berlin"]
[BlackTeam "Mecklenburg-Vorpommern"]
[WhiteTeamCountry "GER"]
[BlackTeamCountry "GER"]
[TimeControl "30/5400+30:0"]

1. Nf3 d5 2. g3 Nf6 3. Bg2 g6 4. O-O Bg7 5. d3 O-O 6. Nbd2 c6 7. c4 {[%emt 0:03:46]} Na6 {[%emt 0:19:06]} 8. a3 {[%emt 0:03:18]} h6 {[%emt 0:05:06]} 9. Qc2 {[%emt 0:02:40]} Nc7 {[%emt 0:03:59]} 10. Rb1 {[%emt 0:03:23]} a5 {[%emt 0:01:24]} 11. b4 {[%emt 0:02:20]} axb4 {[%emt 0:00:09]} 12. axb4 {[%emt 0:00:06]} Be6 {[%emt 0:13:39]} 13. Bb2 {[%emt 0:06:34]} Qc8 {[%emt 0:08:46]} 14. Be5 {[%emt 0:04:18]} Nh5 {[%emt 0:08:50]} 15. Ra1 {[%emt 0:02:20]} f6 {[%emt 0:06:57]} 16. Rxa8 {[%emt 0:00:39]} Nxa8 {[%emt 0:00:07]} 17. Bd4 {[%emt 0:00:33]} Bf7 {[%emt 0:01:35]} 18. Ra1 {[%emt 0:03:16]} e5 {[%emt 0:01:37]} 19. Bb2 {[%emt 0:02:25]} Re8 {[%emt 0:05:08]} 1/2-1/2

[Event "GER-chT Youth Countries 2020"]
[Site "Berlin"]
[Date "2020.09.30"]
[Round "2"]
[White "Besou, Hussain"]
[Black "Middendorf, Sven-Jonas"]
[Result "1-0"]
[ECO "E08"]
[WhiteElo "1825"]
[BlackElo "1355"]
[Annotator "NA"]
[PlyCount "109"]
[EventDate "2020.09.30"]
[EventType "team-tourn"]
[EventRounds "7"]
[EventCountry "GER"]
[SourceTitle "playchess.com"]
[Source "ChessBase"]
[SourceQuality "1"]
[WhiteTeam "Nordrhein-Westfalen"]
[BlackTeam "Brandenburg"]
[WhiteTeamCountry "GER"]
[BlackTeamCountry "GER"]
[TimeControl "30/5400+30:0"]

1. d4 {[%emt 0:00:00]} Nf6 {[%emt 0:00:00]} 2. c4 {[%emt 0:00:00]} e6 {[%emt 0:00:00]} 3. Nf3 {[%emt 0:00:00]} d5 {[%emt 0:00:21]} 4. g3 {[%emt 0:00:00]} Be7 {[%emt 0:00:39]} 5. Bg2 {[%emt 0:00:01]} O-O {[%emt 0:00:27]} 6. Qc2 {[%emt 0:00:05]} Nbd7 {[%emt 0:00:53]} 7. O-O {[%emt 0:00:09]} Re8 {[%emt 0:01:53]} 8. Rd1 {[%emt 0:00:55]} Bf8 {[%emt 0:03:05]} 9. b3 {[%emt 0:00:38]} g6 {[%emt 0:07:32]} 10. Bb2 {[%emt 0:00:19]} Bg7 {[%emt 0:00:23]} 11. Nbd2 {[%emt 0:00:17]} b6 {[%emt 0:05:45]} 12. Rac1 {[%emt 0:01:05]} Bb7 {[%emt 0:03:09]} 13. cxd5 {[%emt 0:00:32]} Nxd5 {[%emt 0:01:23]} 14. e4 {[%emt 0:00:17]} Nb4 {[%emt 0:08:44]} 15. Qxc7 {[%emt 0:00:10]} Qc8 {[%emt 0:09:10]} 16. Qf4 {[%emt 0:01:15]} Nd3 {[%emt 0:03:03]} 17. Rxc8 {[%emt 0:00:07]} Nxf4 {[%emt 0:00:08]} 18. Rxe8+ {[%emt 0:00:05]} Rxe8 {[%emt 0:00:14]} 19. gxf4 {[%emt 0:00:05]} f5 {[%emt 0:00:59]} 20. e5 {[%emt 0:00:12]} Bh6 {[%emt 0:07:09]} 21. Rc1 {[%emt 0:00:06]} Bd5 {[%emt 0:10:36]} 22. Rc7 {[%emt 0:00:09]} Rd8 {[%emt 0:00:08]} 23. Ba3 {[%emt 0:00:12]} Kf7 {[%emt 0:04:36]} 24. Nc4 {[%emt 0:00:18]} Bxf4 {[%emt 0:04:04]} 25. Nd6+ {[%emt 0:00:10]} Kg8 {[%emt 0:00:15]} 26. Nb7 {[%emt 0:00:12]} Rb8 {[%emt 0:02:22]} 27. Rxd7 {[%emt 0:00:09]} Rxb7 {[%emt 0:02:36]} 28. Rxb7 {[%emt 0:00:09]} Bxb7 {[%emt 0:00:05]} 29. Ne1 {[%emt 0:00:22]} Ba6 {[%emt 0:01:00]} 30. d5 {[%emt 0:00:08]} exd5 {[%emt 0:04:41]} 31. Bxd5+ {[%emt 1:30:07]} Kg7 {[%emt 1:30:25]} 32. e6 {[%emt 0:00:47]} Bb5 {[%emt 0:02:36]} 33. e7 {[%emt 0:00:13]} a5 {[%emt 0:01:56]} 34. Bb2+ {[%emt 0:00:22]} Kh6 {[%emt 0:00:29]} 35. Nd3 {[%emt 0:00:23]} Bg5 {[%emt 0:00:52]} 36. Ba3 {[%emt 0:00:07]} Bxe7 {[%emt 0:00:15]} 37. Bxe7 {[%emt 0:00:06]} Bxd3 {[%emt 0:00:07]} 38. Bd8 {[%emt 0:00:08]} Bb1 {[%emt 0:01:10]} 39. a4 {[%emt 0:00:19]} b5 {[%emt 0:01:19]} 40. axb5 {[%emt 0:00:07]} Bd3 {[%emt 0:00:33]} 41. b6 {[%emt 0:00:09]} Ba6 {[%emt 0:00:20]} 42. b7 {[%emt 0:00:08]} Bxb7 {[%emt 0:00:12]} 43. Bxb7 {[%emt 0:00:05]} g5 {[%emt 0:00:32]} 44. Bxa5 {[%emt 0:00:07]} f4 {[%emt 0:00:20]} 45. b4 {[%emt 0:00:10]} g4 {[%emt 0:00:36]} 46. Bc7 {[%emt 0:00:07]} g3 {[%emt 0:00:00]} 47. Bxf4+ {[%emt 0:00:06]} Kh5 {[%emt 0:00:12]} 48. Bf3+ {[%emt 0:00:06]} Kh4 {[%emt 0:00:16]} 49. hxg3+ {[%emt 0:00:10]} Kh3 {[%emt 0:00:13]} 50. b5 {[%emt 0:00:02]} h5 {[%emt 0:00:15]} 51. b6 {[%emt 0:00:06]} h4 {[%emt 0:00:32]} 52. b7 {[%emt 0:00:06]} hxg3 {[%emt 0:00:18]} 53. b8=Q {[%emt 0:00:05]} gxf2+ {[%emt 0:00:41]} 54. Kf1 {[%emt 0:00:05]} Kh4 {[%emt 0:00:06]} 55. Qh8# {[%emt 0:00:05]} 1-0

[Event "GER-chT Youth Countries 2020"]
[Site "Berlin"]
[Date "2020.09.30"]
[Round "2"]
[White "Schwartz, Oliver"]
[Black "Junker, Magnus"]
[Result "1/2-1/2"]
[ECO "B90"]
[WhiteElo "1794"]
[BlackElo "2093"]
[Annotator "ChessBase"]
[PlyCount "101"]
[EventDate "2020.09.30"]
[EventType "team-tourn"]
[EventRounds "7"]
[EventCountry "GER"]
[SourceTitle "playchess.com"]
[Source "ChessBase"]
[SourceQuality "1"]
[WhiteTeam "Württemberg"]
[BlackTeam "Bayern"]
[WhiteTeamCountry "GER"]
[BlackTeamCountry "GER"]
[TimeControl "30/5400+30:0"]

1. e4 {[%emt 0:00:00]} c5 {[%emt 0:00:10]} 2. Nf3 {[%emt 0:00:00]} d6 {[%emt 0:00:05]} 3. d4 {[%emt 0:00:00]} cxd4 {[%emt 0:00:01]} 4. Nxd4 {[%emt 0:00:03]} Nf6 {[%emt 0:00:05]} 5. Nc3 {[%emt 0:00:05]} a6 {[%emt 0:00:04]} 6. f3 {[%emt 0:00:04]} Nbd7 {[%emt 0:00:27]} 7. Be3 {[%emt 0:00:39]} e6 {[%emt 0:00:35]} 8. Qd2 {[%emt 0:00:58]} Be7 {[%emt 0:00:19]} 9. O-O-O {[%emt 0:00:42]} Qc7 {[%emt 0:01:02]} 10. Kb1 {[%emt 0:04:58]} b5 {[%emt 0:01:05]} 11. g4 {[%emt 0:06:49]} Ne5 {[%emt 0:04:17]} 12. a3 {[%emt 0:07:40]} Nc4 {[%emt 0:03:26]} 13. Bxc4 {[%emt 0:00:24]} bxc4 {[%emt 0:00:03]} 14. Na2 {[%emt 0:06:13]} O-O {[%emt 0:01:40]} 15. h4 {[%emt 0:04:09]} Bd7 {[%emt 0:01:01]} 16. h5 {[%emt 0:02:24]} Rfb8 {[%emt 0:00:19]} 17. g5 {[%emt 0:01:19]} Ne8 {[%emt 0:00:05]} 18. g6 {[%emt 0:02:09]} d5 {[%emt 0:02:02]} 19. h6 {[%emt 0:02:19]} fxg6 {[%emt 0:00:49]} 20. hxg7 {[%emt 0:12:08]} Bxa3 {[%emt 0:00:46]} 21. b3 {[%emt 0:07:16]} e5 {[%emt 0:04:23]} 22. Nf5 {[%emt 0:07:51]} Bxf5 {[%emt 0:01:32]} 23. Qxd5+ {[%emt 0:06:20]} Qf7 {[%emt 0:00:08]} 24. Qxf7+ {[%emt 0:00:25]} Kxf7 {[%emt 0:00:15]} 25. exf5 {[%emt 0:00:27]} gxf5 {[%emt 0:05:25]} 26. Rxh7 {[%emt 0:02:51]} Nf6 {[%emt 0:00:17]} 27. g8=Q+ {[%emt 0:03:07]} Kxg8 {[%emt 0:00:04]} 28. Rc7 {[%emt 0:00:19]} cxb3 {[%emt 0:00:33]} 29. Rg1+ {[%emt 0:03:24]} Kf8 {[%emt 0:00:48]} 30. Nc3 {[%emt 0:02:10]} bxc2+ {[%emt 0:01:22]} 31. Kxc2 {[%emt 1:31:04]} Rb2+ {[%emt 1:30:21]} 32. Kd1 {[%emt 0:00:36]} Rd8+ {[%emt 0:00:59]} 33. Ke1 {[%emt 0:00:14]} f4 {[%emt 0:00:34]} 34. Bc1 {[%emt 0:02:10]} Rb3 {[%emt 0:02:00]} 35. Bxa3+ {[%emt 0:00:21]} Rxa3 {[%emt 0:00:10]} 36. Rgg7 {[%emt 0:00:52]} Rd3 {[%emt 0:03:27]} 37. Rgf7+ {[%emt 0:05:35]} Ke8 {[%emt 0:00:41]} 38. Rxf6 {[%emt 0:00:11]} Raxc3 {[%emt 0:00:31]} 39. Re6+ {[%emt 0:00:19]} Kd8 {[%emt 0:00:16]} 40. Rxc3 {[%emt 0:00:17]} Rxc3 {[%emt 0:00:12]} 41. Rxe5 {[%emt 0:00:26]} Rxf3 {[%emt 0:03:34]} 42. Re4 {[%emt 0:06:36]} Kc7 {[%emt 0:04:25]} 43. Ke2 {[%emt 0:00:25]} Rb3 {[%emt 0:04:12]} 44. Rxf4 {[%emt 0:00:33]} a5 {[%emt 0:00:59]} 45. Kd2 {[%emt 0:02:07]} Kd6 {[%emt 0:00:38]} 46. Kc2 {[%emt 0:00:48]} Rb8 {[%emt 0:00:30]} 47. Rf5 {[%emt 0:00:46]} a4 {[%emt 0:00:58]} 48. Ra5 {[%emt 0:00:29]} Rb4 {[%emt 0:00:04]} 49. Kc3 {[%emt 0:00:10]} Rh4 {[%emt 0:00:03]} 50. Kb2 {[%emt 0:00:11]} Kc6 {[%emt 0:00:38]} 51. Ka3 {[%emt 0:00:12]} 1/2-1/2